fUSD/lending_fUSD_20240214
["ID","MTS","AMOUNT","RATE_DAILY","PERIOD"]
[313982382,1707906637609,-182.47435127,0.00029742,3]
[313982383,1707906637619,-244.1250388,0.00029742,3]
[313982384,1707906637628,-212.49832749,0.00029742,3]
[313982385,1707906637637,-176.56149042,0.000298,2]
[313982386,1707906637646,-441.50820224,0.000298,4]
[313982387,1707906637656,-96096.7163,0.000299,2]
[313982388,1707906637665,-1000.0,0.000299,2]
[313982389,1707906637674,-4859.3643,0.000299,2]
[313982390,1707906637684,-173.21591661,0.000299,2]
[313982391,1707906637693,-200.0,0.000299,10]
[313982392,1707906637702,-277.48,0.00029933,2]
[313982393,1707906637712,-983.18773588,0.0003,4]
[313982394,1707906637721,-2433.62784293,0.0003,2]
[313982395,1707906637730,-16647.72966828,0.0003,3]
[313982396,1707906637739,-73392.57907739,0.0003,4]
[313982397,1707906637748,-360.22491493,0.0003,2]
[313982399,1707906637758,-1060.49687356,0.0003,4]
[313982400,1707906637768,-501.04333133,0.0003,4]
[313982401,1707906637778,-155.0,0.0003,2]
[313982402,1707906637787,-9696.33084406,0.0003,2]
[313982403,1707906637797,-167.17569114,0.0003,4]
[313982404,1707906637806,-2000.0,0.0003,2]
[313982405,1707906637815,-273.61092457,0.0003,4]
[313982407,1707906637824,-1176.65001753,0.0003,4]
[313982408,1707906637833,-3000.0,0.0003,2]
[313982410,1707906637842,-2679.83069349,0.0003,4]
[313982411,1707906637851,-155.37158693,0.0003,2]
[313982412,1707906637860,-3000.0,0.0003,2]
[313982413,1707906637869,-4028.948937,0.0003,2]
[313982414,1707906637878,-450.0,0.0003,3]
[313982415,1707906637888,-500.0,0.0003,2]
[313982416,1707906637897,-2225.35078861,0.0003,4]
[313982422,1707906638076,-380.4010171,0.0003,4]
[313982423,1707906638090,-300.70250051,0.0003,2]
[313982424,1707906638100,-153.94,0.0003,2]
[313982425,1707906638109,-153.94,0.0003,2]
[313982426,1707906638118,-3000.0,0.0003001,2]
[313982427,1707906638127,-5477.23002,0.0003002,2]
[313982428,1707906638137,-1000.0,0.000301,2]
[313982429,1707906638146,-157.67,0.00030326,2]
[313982430,1707906638156,-3926.10971102,0.00030456,2]
[313982431,1707906638165,-151.0214,0.00030648,5]
[313982432,1707906638174,-151.0214,0.00030748,7]
[313982433,1707906638184,-441.50820221,0.00030899,5]
[313982434,1707906638193,-151.0214,0.00030948,7]
[313982435,1707906638203,-923.52,0.00030968,2]
[313982436,1707906638212,-1400.0,0.00031,3]
[313982437,1707906638222,-379.0,0.00031025,2]
[313982438,1707906638231,-151.0214,0.00031148,7]
[313982439,1707906638241,-721.34,0.00031228,2]
[313982440,1707906638250,-151.0,0.00031232,120]
[313982441,1707906638261,-158.18,0.00031289,120]
[313982442,1707906638271,-157.67,0.00031328,2]
[313982443,1707906638281,-500.0,0.0003137,2]
[313982444,1707906638291,-500.0,0.0003137,2]
[313982445,1707906638300,-500.0,0.0003137,2]
[313982446,1707906638310,-500.0,0.0003137,2]
[313982447,1707906638321,-500.0,0.0003137,2]
[313982448,1707906638330,-500.0,0.0003137,2]
[313982449,1707906638339,-500.0,0.0003137,2]
[313982450,1707906638350,-500.0,0.0003137,2]
[313982451,1707906638359,-500.0,0.0003137,2]
[313982452,1707906638369,-500.0,0.0003137,2]
[313982453,1707906638379,-500.0,0.0003137,2]
[313982454,1707906638389,-500.0,0.0003137,2]
[313982455,1707906638398,-500.0,0.0003137,2]
[313982456,1707906638409,-500.0,0.0003137,2]
[313982457,1707906638418,-500.0,0.0003137,2]
[313982458,1707906638429,-500.0,0.0003137,2]
[313982459,1707906638438,-500.0,0.0003137,2]
[313982460,1707906638449,-500.0,0.0003137,2]
[313982461,1707906638458,-500.0,0.0003137,2]
[313982462,1707906638468,-500.0,0.0003137,2]
[313982463,1707906638477,-500.0,0.0003137,2]
[313982464,1707906638486,-500.0,0.0003137,2]
[313982465,1707906638496,-500.0,0.0003137,2]
[313982466,1707906638506,-500.0,0.0003137,2]
[313982467,1707906638515,-500.0,0.0003137,2]
[313982468,1707906638525,-500.0,0.0003137,2]
[313982469,1707906638534,-500.0,0.0003137,2]
[313982470,1707906638544,-500.0,0.0003137,2]
[313982471,1707906638553,-500.0,0.0003137,2]
[313982472,1707906638563,-500.0,0.0003137,2]
[313982473,1707906638572,-500.0,0.0003137,2]
[313982474,1707906638583,-500.0,0.0003137,2]
[313982475,1707906638593,-500.0,0.0003137,2]
[313982476,1707906638602,-500.0,0.0003137,2]
[313982477,1707906638612,-500.0,0.0003137,2]
[313982478,1707906638621,-500.0,0.0003137,2]
[313982479,1707906638631,-1000.0,0.0003137,2]
[313982480,1707906638640,-151.0214,0.00031448,7]
[313982481,1707906638649,-180.0,0.00031644,2]
[313982482,1707906638659,-151.0214,0.00031648,5]
[313982483,1707906638668,-151.0214,0.00031748,7]
[313982484,1707906638677,-2384.6477973,0.00031776,3]
[313982485,1707906638686,-20298.63016416,0.000318,3]
[313982486,1707906638699,-69328.76332103,0.000318,3]
[313982487,1707906638711,-4396.51692642,0.000318,3]
[313982488,1707906638726,-4342.69434097,0.000318,3]
[313982489,1707906638895,-18618.87183942,0.000318,3]
[313982490,1707906638906,-151.0,0.00031869,30]
[313982491,1707906638915,-200.0,0.00031876,2]
[313982492,1707906638923,-233.570803,0.00031876,3]
[313982493,1707906638933,-500.0,0.000319,11]
[313982494,1707906638943,-151.0214,0.00031948,7]
[313982495,1707906638953,-441.50820221,0.00031998,5]
[313982496,1707906638963,-153.94,0.00032,2]
[313982497,1707906638974,-153.94,0.00032,2]
[313982498,1707906638984,-153.94,0.00032,2]
[313982499,1707906638993,-153.94,0.00032,2]
[313982500,1707906639003,-151.0214,0.00032148,8]
[313982501,1707906639012,-277.48,0.00032197,2]
[313982502,1707906639021,-2384.64779728,0.00032295,4]
[313982503,1707906639031,-269.00350648,0.000323,4]
[313982504,1707906639041,-157.67,0.00032331,2]
[313982505,1707906639050,-10635.0433265,0.00032334,3]
[313982506,1707906639060,-3926.10971102,0.00032344,2]
[313982507,1707906639069,-151.0214,0.00032448,8]
[313982508,1707906639078,-151.0,0.00032519,7]
[313982509,1707906639087,-209.0,0.00032567,16]
[313982510,1707906639097,-151.0214,0.00032648,8]
[313982511,1707906639106,-379.0,0.00032668,2]
[313982512,1707906639116,-151.0214,0.00032748,8]
[313982513,1707906639125,-205.04048404,0.000328,6]
[313982514,1707906639135,-2384.64779728,0.00032813,4]
[313982515,1707906639144,-721.34,0.00032872,2]
[313982516,1707906639153,-152.6,0.00032877,2]
[313982517,1707906639162,-150.0,0.00032877,2]
[313982518,1707906639171,-4536.4346,0.00032877,2]
[313982519,1707906639180,-3543.70129586,0.0003289,4]
[313982520,1707906639196,-7091.34203064,0.0003289,4]
[313982521,1707906639205,-1000.0,0.000329,2]
[313982522,1707906639215,-5000.0,0.000329,2]
[313982523,1707906639224,-2000.0,0.000329,2]
[313982524,1707906639234,-500.0,0.000329,2]
[313982525,1707906639243,-151.0214,0.00032948,7]
[313982526,1707906639253,-21270.086653,0.0003299,4]
[313982527,1707906639263,-23903.09376144,0.00033,3]
[313982528,1707906639276,-2487.6614324,0.00033,3]
[313982529,1707906639289,-2333.36605109,0.00033,3]
[313982530,1707906639301,-2157.88140298,0.00033,3]
[313982531,1707906639312,-9900.332137,0.00033,3]
[313982532,1707906639328,-5339.26378674,0.00033,3]
[313982533,1707906639340,-1820.93056418,0.00033,3]
[313982534,1707906639353,-2057.47086417,0.00033,3]
[313982535,1707906639363,-493.6023034,0.00033,4]
[313982536,1707906639372,-767.80874563,0.00033,4]
[313982537,1707906639382,-1450.0,0.00033,3]
[313982538,1707906639392,-566.0855557,0.00033025,2]
[313982539,1707906639401,-441.50820221,0.00033097,6]
[313982540,1707906639411,-500.0,0.00033125,2]
[313982541,1707906639420,-500.0,0.00033125,2]
[313982542,1707906639429,-500.0,0.00033125,2]
[313982543,1707906639439,-500.0,0.00033125,2]
[313982544,1707906639448,-500.0,0.00033125,2]
[313982545,1707906639457,-500.0,0.00033125,2]
[313982546,1707906639466,-500.0,0.00033125,2]
[313982547,1707906639475,-61.41248729,0.00033148,8]
[313982548,1707906639487,-89.60891271,0.00033148,8]
[313982549,1707906639496,-151.0,0.00033183,4]
[313982550,1707906639505,-10635.0433265,0.0003331,5]
[313982551,1707906639515,-1052.32395118,0.0003332,5]
[313982552,1707906639524,-2384.64779728,0.00033332,5]
[313982553,1707906639533,-157.67,0.00033333,2]
[313982554,1707906639542,-151.0214,0.00033448,8]
[313982555,1707906639552,-217.37,0.0003348,2]
[313982556,1707906639561,-803.91,0.000335,2]
[313982557,1707906639570,-803.91,0.000335,2]
[313982558,1707906639579,-803.91,0.000335,2]
[313982559,1707906639588,-803.91,0.000335,2]
[313982560,1707906639597,-803.91,0.000335,2]
[313982561,1707906639606,-803.91,0.000335,2]
[313982562,1707906639616,-646.88276726,0.000335,2]
[313982563,1707906639661,-157.02723274,0.000335,2]
[313982564,1707906639671,-235.89455095,0.000335,2]
[313982565,1707906639690,-500.0,0.0003137,2]
[313982566,1707906639700,-201.17,0.000335,2]
[313982567,1707906639711,-366.84544905,0.000335,2]
[313982568,1707906639721,-803.91,0.000335,2]
[313982569,1707906639730,-803.91,0.000335,2]
[313982570,1707906639740,-803.91,0.000335,2]
[313982571,1707906639749,-803.91,0.000335,2]
[313982572,1707906639759,-803.91,0.000335,2]
[313982573,1707906639770,-803.91,0.000335,2]
[313982574,1707906639780,-803.91,0.000335,2]
[313982575,1707906639791,-803.91,0.000335,2]
[313982576,1707906639803,-803.91,0.000335,2]
[313982577,1707906639814,-803.91,0.000335,2]
[313982578,1707906639825,-803.91,0.000335,2]
[313982579,1707906639836,-803.91,0.000335,2]
[313982580,1707906639848,-151.0214,0.00033648,8]
[313982581,1707906639860,-200.0,0.000337,2]
[313982582,1707906639871,-150.0,0.00033742,2]
[313982583,1707906639882,-151.0214,0.00033748,8]
[313982585,1707906639893,-10635.0433265,0.00033841,6]
[313982586,1707906639903,-2384.64779728,0.00033851,6]
[313982588,1707906639918,-151.0,0.0003386,2]
[313982591,1707906639929,-151.19629262,0.000339,2]
[313982593,1707906639942,-800.0,0.00033926,2]
[313982595,1707906639953,-200.0,0.00033926,10]
[313982598,1707906639964,-151.0214,0.00033948,7]
[313982599,1707906639974,-4050.44297115,0.0003398,2]
[313982601,1707906639984,-21270.086653,0.0003399,6]
[313982602,1707906639994,-32299.9453104,0.00034,4]
[313982603,1707906640008,-17700.0546896,0.00034,4]
[313982604,1707906640018,-2170.08742529,0.00034,4]
[313982605,1707906640028,-153.94,0.000341,2]
[313982606,1707906640038,-153.94,0.000341,2]
[313982607,1707906640048,-153.94,0.000341,2]
[313982608,1707906640058,-153.94,0.000341,2]
[313982609,1707906640067,-1021.0,0.000341,7]
[313982610,1707906640078,-151.0214,0.00034148,12]
[313982611,1707906640087,-441.50820221,0.00034197,6]
[313982612,1707906640097,-151.19629262,0.00034211,2]
[313982613,1707906640107,-10635.0433265,0.00034223,6]
[313982614,1707906640117,-3926.10971102,0.00034233,2]
[313982615,1707906640126,-379.0,0.00034312,2]
[313982616,1707906640136,-157.67,0.00034336,2]
[313982617,1707906640146,-10635.0433265,0.0003434,7]
[313982618,1707906640160,-2711.88106,0.0003435,2]
[313982619,1707906640169,-2384.64779728,0.0003437,6]
[313982620,1707906640179,-328.0,0.000344,2]
[313982621,1707906640189,-923.52,0.00034409,2]
[313982622,1707906640337,-200.0,0.00034421,3]
[313982623,1707906640346,-151.0214,0.00034448,12]
[313982624,1707906640356,-277.48,0.00034461,2]
[313982625,1707906640365,-16000.0,0.000345,3]
[313982626,1707906640374,-10635.0433265,0.00034511,7]
[313982627,1707906640383,-3590.09,0.00034521,2]
[313982628,1707906640393,-151.19629262,0.00034523,2]
[313982629,1707906640402,-157.79867289,0.00034606,4]
[313982630,1707906640414,-166.39720002,0.00034606,4]
[313982631,1707906640424,-150.0,0.00034607,2]
[313982632,1707906640434,-151.0214,0.00034648,12]
[313982633,1707906640444,-1930.11152813,0.00034687,2]
[313982634,1707906640454,-10635.0433265,0.0003469,7]
[313982635,1707906640464,-10635.0433265,0.0003469,7]
[313982636,1707906640474,-205.04048404,0.00034693,8]
[313982637,1707906640483,-200.0,0.000347,8]
[313982638,1707906640494,-238.145774,0.000347,2]
[313982639,1707906640503,-238.145775,0.000347,2]
[313982640,1707906640514,-238.145774,0.000347,2]
[313982641,1707906640524,-1988.471398,0.000347,2]
[313982642,1707906640534,-1988.471398,0.000347,2]
[313982643,1707906640544,-1988.471398,0.000347,2]
[313982644,1707906640557,-803.91,0.000347,2]
[313982645,1707906640567,-803.91,0.000347,2]
[313982646,1707906640576,-803.91,0.000347,2]
[313982647,1707906640586,-803.91,0.000347,2]
[313982648,1707906640595,-803.91,0.000347,2]
[313982649,1707906640605,-803.91,0.000347,2]
[313982650,1707906640614,-803.91,0.000347,2]
[313982651,1707906640623,-803.91,0.000347,2]
[313982652,1707906640633,-803.91,0.000347,2]
[313982653,1707906640642,-803.91,0.000347,2]
[313982654,1707906640651,-803.91,0.000347,2]
[313982655,1707906640663,-803.91,0.000347,2]
[313982656,1707906640673,-803.91,0.000347,2]
[313982657,1707906640683,-803.91,0.000347,2]
[313982658,1707906640693,-803.91,0.000347,2]
[313982659,1707906640703,-803.91,0.000347,2]
[313982660,1707906640712,-803.91,0.000347,2]
[313982661,1707906640722,-803.91,0.000347,2]
[313982662,1707906640732,-803.91,0.000347,2]
[313982663,1707906640741,-803.91,0.000347,2]
[313982664,1707906640751,-2599.4717963,0.0003472,2]
[313982665,1707906640760,-5068.570474,0.0003472,2]
[313982666,1707906640771,-2711.88107,0.0003472,2]
[313982667,1707906640784,-2106.0243146,0.0003472,2]
[313982668,1707906640794,-151.0214,0.00034748,12]
[313982669,1707906640803,-74445.3032856,0.00034782,7]
[313982670,1707906640814,-2115.0014106,0.00034792,4]
[313982671,1707906640824,-2214.26891387,0.00034792,4]
[313982672,1707906640835,-362.52758853,0.00034792,4]
[313982673,1707906640845,-183.87670948,0.00034792,10]
[313982674,1707906640856,-500.0,0.00034792,4]
[313982675,1707906640866,-531.07266181,0.00034792,4]
[313982676,1707906640875,-142969.11598032,0.00034792,4]
[313982677,1707906640897,-13522.43016229,0.00034792,4]
[313982678,1707906640911,-1751.19310063,0.00034792,4]
[313982679,1707906640923,-13783.75975547,0.00034792,4]
[313982680,1707906640932,-994.72595111,0.00034793,4]
[313982681,1707906640942,-252.9215324,0.00034793,4]
[313982682,1707906640951,-7263.880444,0.00034794,2]
[313982683,1707906640961,-52318.278974,0.00034794,2]
[313982684,1707906640969,-16000.0,0.00034794,3]
[313982685,1707906640978,-1314.6713,0.000348,2]
[313982686,1707906640987,-5000.0,0.000348,3]
[313982687,1707906640997,-800.0,0.000348,12]
[313982688,1707906641006,-858.70367477,0.00034801,2]
[313982689,1707906641015,-58000.0,0.00034821,3]
[313982690,1707906641024,-489.58460477,0.00034823,3]
[313982691,1707906641033,-151.19629262,0.00034834,2]
[313982692,1707906641042,-693.58519718,0.00034864,2]
[313982693,1707906641052,-1816.37,0.00034867,5]
[313982694,1707906641061,-431.50721724,0.0003487,2]
[313982695,1707906641071,-1000.0,0.00034879,7]
[313982696,1707906641081,-2384.64779728,0.00034888,7]
[313982697,1707906641090,-1050.5071,0.000349,4]
[313982698,1707906641100,-9020.33153679,0.000349,4]
[313982699,1707906641110,-5463.328277,0.000349,2]
[313982700,1707906641119,-55900.15718271,0.000349,3]
[313982701,1707906641128,-58000.0,0.000349,3]
[313982702,1707906641137,-186.85902602,0.000349,7]
[313982703,1707906641147,-5895.66677304,0.000349,2]
[313982704,1707906641157,-5895.66677289,0.000349,2]
[313982705,1707906641165,-5895.66677289,0.000349,2]
[313982706,1707906641174,-5895.66677289,0.000349,2]
[313982707,1707906641183,-5895.66677289,0.000349,2]
[313982708,1707906641192,-1100.0,0.000349,12]
[313982709,1707906641202,-872.81670212,0.000349,2]
[313982710,1707906641211,-2602.11559764,0.000349,2]
[313982711,1707906641220,-201.21620402,0.000349,2]
[313982712,1707906641229,-9685.173926,0.00034931,2]
[313982713,1707906641239,-69757.705299,0.00034931,2]
[313982714,1707906641248,-151.0214,0.00034948,8]
[313982715,1707906641258,-2170.7483801,0.00034976,2]
[313982716,1707906641268,-4232.6257057,0.00034976,2]
[313982717,1707906641279,-676.79640478,0.00034976,2]
[313982718,1707906641291,-323.8928709,0.00034976,2]
[313982719,1707906641950,-500.0,0.0003137,2]
[313982720,1707906641960,-500.0,0.0003137,2]
[313982721,1707906641969,-500.0,0.0003137,2]
[313982722,1707906641978,-500.0,0.0003137,2]
[313982723,1707906641987,-757.99449842,0.00034976,2]
[313982724,1707906641996,-500.0,0.00034987,2]
[313982725,1707906642006,-1930.11152813,0.00034997,2]
[313982726,1707906642015,-65167.80511322,0.00035,15]
[313982727,1707906642064,-34832.19488678,0.00035,15]
[313982728,1707906642073,-155.0,0.00035,2]
[313982729,1707906642084,-844.04824905,0.00035,2]
[313982730,1707906642095,-15583.75686417,0.00035,4]
[313982741,1707906642685,-32194.67131373,0.00035,4]
[313982742,1707906642694,-11966.68443943,0.00035,7]
[313982743,1707906642704,-451.17975231,0.00035,4]
[313982744,1707906642713,-200.0,0.00035,8]
[313982745,1707906642723,-1000.0,0.00035,5]
[313982746,1707906642732,-1000.0,0.00035,5]
[313982747,1707906642741,-622.85724908,0.00035,4]
[313982748,1707906642750,-1267.66229339,0.00035,4]
[313982749,1707906642759,-155.0,0.00035,4]
[313982750,1707906642769,-1513.01111474,0.00035,2]
[313982751,1707906642778,-5000.0,0.00035,7]
[313982752,1707906642788,-155.0,0.00035,4]
[313982753,1707906642797,-6415.75493364,0.00035,4]
[313982754,1707906642807,-621.79162954,0.00035,4]
[313982755,1707906642817,-24337.0,0.00035,2]
[313982756,1707906642826,-1752.895067,0.00035,2]
[313982757,1707906642837,-500.0,0.00035,5]
[313982758,1707906642846,-150.0,0.00035,2]
[313982759,1707906642855,-411.87582363,0.00035,36]
[313982760,1707906642864,-8326.0,0.00035,5]
[313982761,1707906642873,-155.0,0.00035,2]
[313982762,1707906642882,-1500.0,0.00035,3]
[313982763,1707906642891,-1690.20524863,0.00035,2]
[313982764,1707906642901,-5640.07272831,0.00035,4]
[313982765,1707906642914,-443.79993554,0.00035,4]
[313982766,1707906642929,-646.66986606,0.00035,4]
[313982767,1707906643201,-7456.29019144,0.00035,4]
[313982768,1707906643213,-555.75948482,0.00035,4]
[313982769,1707906643225,-1001.45,0.00035,4]
[313982770,1707906643240,-1120.4,0.00035,4]
[313982771,1707906643251,-667.48092197,0.00035,4]
[313982772,1707906643287,-1911.34631083,0.00035,4]
[313982773,1707906643752,-484.41635285,0.00025154,2]
[313982774,1707906643765,-359.9234224,0.00025154,2]
[313982777,1707906643782,-117.42022475,0.00025154,2]
[313982778,1707906643792,-969.27668517,0.00028,2]
[313982781,1707906643802,-28814.40935358,0.00035,4]
[313982783,1707906643815,-508.13876161,0.00035,4]
[313982785,1707906643828,-347921.36429755,0.00035,4]
[313982787,1707906643838,-127616.74469258,0.00035,4]
[313982789,1707906643847,-175.0,0.00035,4]
[313982791,1707906643856,-664.0,0.00035,120]
[313982793,1707906643865,-74462.85813415,0.00035,3]
[313982795,1707906643875,-300.0,0.00035,36]
[313982797,1707906643885,-10017.0843762,0.00035,3]
[313982799,1707906643894,-56500.0,0.00035,4]
[313982801,1707906643903,-12106.467408,0.00035068,2]
[313982803,1707906643914,-87197.131624,0.00035068,2]
[313982805,1707906643923,-33100.5973,0.00035082,3]
[313982807,1707906643932,-150.0,0.000351,24]
[313982809,1707906643941,-6879.1826554,0.00035101,2]
[313982811,1707906643950,-151.19629262,0.00035145,2]
[313982813,1707906643960,-151.0214,0.00035148,13]
[313982815,1707906643969,-200.0,0.000352,9]
[313982817,1707906643977,-441.50820221,0.00035296,7]
[313982819,1707906643987,-17508.0,0.000353,3]
[313982821,1707906643997,-1630.433131,0.00035317,2]
[313982823,1707906644006,-171.397117,0.00035317,2]
[313982825,1707906644016,-197.890604,0.00035317,2]
[313982827,1707906644025,-180.529011,0.00035317,2]
[313982828,1707906644034,-183.049784,0.00035317,2]
[313982829,1707906644043,-154.922157,0.00035317,2]
[313982830,1707906644052,-171.558606,0.00035317,2]
[313982831,1707906644061,-168.519632,0.00035317,2]
[313982832,1707906644071,-157.67,0.00035338,2]
[313982834,1707906644080,-2711.88107,0.0003534,2]
[313982835,1707906644089,-16949.054371,0.00035342,2]
[313982837,1707906644098,-122075.984273,0.00035342,2]
[313982839,1707906644107,-2384.64779728,0.00035407,8]
[313982841,1707906644116,-10000.0,0.00035415,3]
[313982842,1707906644126,-151.0214,0.00035448,13]
[313982844,1707906644135,-151.19629262,0.00035456,2]
[313982847,1707906644145,-150.0,0.00035472,2]
[313982849,1707906644154,-418.61,0.00035491,2]
[313982851,1707906644164,-418.61,0.00035491,2]
[313982853,1707906644173,-418.61,0.00035491,2]
[313982855,1707906644182,-418.61,0.00035491,2]
[313982857,1707906644191,-418.61,0.00035491,2]
[313982859,1707906644200,-197388.63280853,0.000355,3]
[313982860,1707906644209,-663.21156406,0.000355,2]
[313982862,1707906644218,-17508.0,0.000355,5]
[313982864,1707906644227,-500.0,0.0003556,5]
[313982866,1707906644236,-564.0,0.0003556,5]
[313982869,1707906644246,-2191.118834,0.000356,2]
[313982871,1707906644255,-150.0,0.000356,24]
[313982872,1707906644270,-1000.0,0.000356,2]
[313982874,1707906644279,-1497.47277567,0.00035616,7]
[313982876,1707906644288,-222.82,0.00035616,7]
[313982878,1707906644297,-35149.749587,0.00035616,7]
[313982881,1707906644307,-1434.69177583,0.00035616,7]
[313982882,1707906644316,-41092.7420892,0.00035616,7]
[313982884,1707906644324,-350.71557359,0.00035616,7]
[313982886,1707906644334,-666.0,0.00035616,2]
[313982888,1707906644346,-151.0214,0.00035648,12]
[313982890,1707906644355,-5604.34,0.000357,7]
[313982892,1707906644364,-8112.80050855,0.000357,7]
[313982895,1707906644380,-427.76286142,0.00028298,2]
[313982897,1707906644392,-533.99713858,0.00028298,2]
[313982899,1707906644401,-312.88949145,0.000357,7]
[313982901,1707906644410,-5101.30336997,0.000357,7]
[313982903,1707906644422,-1416.12663003,0.000357,7]
[313982905,1707906644431,-47.55027473,0.000357,9]
[313982906,1707906644443,-152.44972527,0.000357,9]
[313982908,1707906644452,-151.0214,0.00035748,13]
[313982910,1707906644460,-1630.433131,0.00035758,2]
[313982912,1707906644469,-151.19629262,0.00035768,2]
[313982914,1707906644479,-4299.17669471,0.0003578,5]
[313982917,1707906644499,-15700.82330529,0.0003578,5]
[313982934,1707906644508,-3590.09,0.00035798,2]
[313982937,1707906644657,-803.91,0.000358,3]
[313982939,1707906644667,-803.91,0.000358,3]
[313982941,1707906644676,-803.91,0.000358,3]
[313982942,1707906644686,-803.91,0.000358,3]
[313982943,1707906644695,-803.91,0.000358,3]
[313982944,1707906644704,-803.91,0.000358,3]
[313982945,1707906644714,-803.91,0.000358,3]
[313982946,1707906644723,-803.91,0.000358,3]
[313982947,1707906644732,-803.91,0.000358,3]
[313982948,1707906644741,-803.91,0.000358,3]
[313982949,1707906644751,-803.91,0.000358,3]
[313982950,1707906644761,-803.91,0.000358,3]
[313982951,1707906644770,-803.91,0.000358,3]
[313982952,1707906644780,-803.91,0.000358,3]
[313982953,1707906644789,-803.91,0.000358,3]
[313982954,1707906644799,-803.91,0.000358,3]
[313982955,1707906644809,-803.91,0.000358,3]
[313982956,1707906644819,-803.91,0.000358,3]
[313982957,1707906644829,-803.91,0.000358,3]
[313982958,1707906644839,-803.91,0.000358,3]
[313982959,1707906644850,-1000.0,0.0003589,120]
[313982960,1707906644859,-173.21591661,0.000359,2]
[313982961,1707906644869,-1400.0,0.000359,13]
[313982962,1707906644881,-180.529011,0.00035905,2]
[313982963,1707906644891,-2384.64779728,0.00035926,8]
[313982964,1707906644901,-151.0214,0.00035948,12]
[313982965,1707906644912,-379.0,0.00035956,7]
[313982966,1707906644920,-2711.88107,0.0003597,2]
[313982967,1707906644930,-5000.0,0.0003598,2]
[313982968,1707906644940,-500.0,0.00035987,2]
[313982969,1707906644951,-1930.11152813,0.00035997,2]
[313982970,1707906644961,-100000.0,0.00036,16]
[313982971,1707906644970,-300.0,0.00036,37]
[313982972,1707906644980,-180.0,0.00036,4]
[313982973,1707906644989,-201600.21717894,0.00036,10]
[313982974,1707906644999,-200.0,0.00036,9]
[313982975,1707906645008,-5604.34,0.00036,7]
[313982976,1707906645018,-8425.69,0.00036,7]
[313982977,1707906645028,-6517.43,0.00036,7]
[313982978,1707906645037,-1000.0,0.00036,6]
[313982979,1707906645047,-250.0,0.00036,120]
[313982980,1707906645056,-3067.566367,0.00036,2]
[313982981,1707906645065,-1000.0,0.00036,2]
[313982982,1707906645075,-207.75854739,0.00036,2]
[313982983,1707906645084,-599.99999902,0.00036,37]
[313982984,1707906645094,-9208.17,0.00036,3]
[313982985,1707906645103,-64641.76871189,0.00036,30]
[313982986,1707906645112,-152.74044294,0.00036012,2]
[313982987,1707906645122,-150.0,0.0003606,120]
[313982988,1707906645131,-151.19629262,0.00036079,2]
[313982989,1707906645142,-150.0,0.000361,25]
[313982990,1707906645152,-153.94,0.000361,3]
[313982991,1707906645162,-153.94,0.000361,3]
[313982992,1707906645171,-153.94,0.000361,3]
[313982993,1707906645180,-153.94,0.000361,3]
[313982994,1707906645189,-3926.10971102,0.00036122,2]
[313982995,1707906645199,-151.0214,0.00036148,13]
[313982996,1707906645208,-872.8167021,0.00036197,2]
[313982997,1707906645217,-2602.11559764,0.00036197,2]